[Event "Live Chess"]
[Site "Chess.com"]
[Date "2024.06.01"]
[Round "-"]
[White "CarmelJane"]
[Black "NeilDruggan73"]
[Result "1-0"]
[WhiteElo "2086"]
[BlackElo "1753"]
[TimeControl "300"]
[EndTime "13:28:32 PDT"]
[Termination "CarmelJane won on time"]

1. e4 {[%clk 0:04:58.2]} 1... d6 {[%clk 0:04:57]} 2. d4 {[%clk 0:04:56.7]} 2...
Nf6 {[%clk 0:04:55.1]} 3. Nc3 {[%clk 0:04:55.8]} 3... g6 {[%clk 0:04:53.6]} 4.
Bf4 {[%clk 0:04:51.9]} 4... Bg7 {[%clk 0:04:51.9]} 5. Qd2 {[%clk 0:04:51]} 5...
O-O {[%clk 0:04:36.6]} 6. O-O-O {[%clk 0:04:48.9]} 6... c6 {[%clk 0:04:33.3]} 7.
Bh6 {[%clk 0:04:41.9]} 7... b5 {[%clk 0:04:31.4]} 8. f3 {[%clk 0:04:38.4]} 8...
Qa5 {[%clk 0:04:30]} 9. Kb1 {[%clk 0:04:37.1]} 9... Na6 {[%clk 0:04:18.8]} 10.
Bxg7 {[%clk 0:04:18.6]} 10... Kxg7 {[%clk 0:04:16.6]} 11. e5 {[%clk 0:04:06.3]}
11... Nd5 {[%clk 0:04:09.9]} 12. Nxd5 {[%clk 0:04:01.8]} 12... Qxd2 {[%clk
0:04:08.6]} 13. Rxd2 {[%clk 0:04:01]} 13... cxd5 {[%clk 0:04:07.6]} 14. exd6
{[%clk 0:03:54]} 14... exd6 {[%clk 0:03:55.6]} 15. Bxb5 {[%clk 0:03:51.8]} 15...
Rb8 {[%clk 0:03:50]} 16. Ba4 {[%clk 0:03:17.8]} 16... h5 {[%clk 0:03:40.8]} 17.
Bb3 {[%clk 0:03:16.1]} 17... Bf5 {[%clk 0:03:34.8]} 18. Ne2 {[%clk 0:03:09.9]}
18... Nb4 {[%clk 0:03:33.5]} 19. Ng3 {[%clk 0:03:03.1]} 19... Bd7 {[%clk
0:03:25.1]} 20. a3 {[%clk 0:03:02]} 20... Nxc2 {[%clk 0:03:18.3]} 21. Bxc2
{[%clk 0:02:59.7]} 21... h4 {[%clk 0:03:07.8]} 22. Ne2 {[%clk 0:02:58.5]} 22...
g5 {[%clk 0:03:05.7]} 23. Nc3 {[%clk 0:02:54.1]} 23... Bc6 {[%clk 0:02:58.2]}
24. Re1 {[%clk 0:02:48.7]} 24... Rb7 {[%clk 0:02:57.1]} 25. Bd3 {[%clk
0:02:41.2]} 25... Rfb8 {[%clk 0:02:56.2]} 26. h3 {[%clk 0:02:33.1]} 26... Rb3
{[%clk 0:02:54.9]} 27. Ka2 {[%clk 0:02:18.5]} 27... Kf6 {[%clk 0:02:40.8]} 28.
Rf1 {[%clk 0:02:10.4]} 28... a5 {[%clk 0:02:22.7]} 29. f4 {[%clk 0:02:07]} 29...
R8b7 {[%clk 0:02:20.4]} 30. fxg5+ {[%clk 0:02:06]} 30... Kxg5 {[%clk 0:02:19.3]}
31. Rf5+ {[%clk 0:02:03.6]} 31... Kh6 {[%clk 0:02:16.2]} 32. Rf4 {[%clk
0:02:01]} 32... a4 {[%clk 0:02:08.2]} 33. Rxh4+ {[%clk 0:01:58.3]} 33... Kg7
{[%clk 0:02:06.7]} 34. Rg4+ {[%clk 0:01:52.9]} 34... Kf8 {[%clk 0:02:04.3]} 35.
Rg5 {[%clk 0:01:46.5]} 35... Bd7 {[%clk 0:01:59.6]} 36. Rxd5 {[%clk 0:01:39.2]}
36... Be6 {[%clk 0:01:56.5]} 37. Bc4 {[%clk 0:01:29.6]} 37... R3b6 {[%clk
0:01:29]} 38. Nxa4 {[%clk 0:01:28.2]} 38... Rc6 {[%clk 0:01:21.9]} 39. b3 {[%clk
0:01:15.5]} 39... Ra7 {[%clk 0:00:52.8]} 40. Rb5 {[%clk 0:00:55.9]} 40... Bxc4
{[%clk 0:00:49.1]} 41. bxc4 {[%clk 0:00:54.8]} 41... Rxa4 {[%clk 0:00:46.9]} 42.
Rb4 {[%clk 0:00:52.5]} 42... Rxc4 {[%clk 0:00:43.8]} 43. Rxa4 {[%clk 0:00:49.1]}
43... Rxa4 {[%clk 0:00:41.9]} 44. Kb3 {[%clk 0:00:49]} 44... Ra5 {[%clk
0:00:40]} 45. Kb4 {[%clk 0:00:46.7]} 45... Rg5 {[%clk 0:00:34.4]} 46. a4 {[%clk
0:00:45.4]} 46... Ke7 {[%clk 0:00:31.1]} 47. a5 {[%clk 0:00:44.9]} 47... Kd7
{[%clk 0:00:30.6]} 48. Rc2 {[%clk 0:00:42.3]} 48... Rg8 {[%clk 0:00:26.2]} 49.
a6 {[%clk 0:00:41.2]} 49... Rb8+ {[%clk 0:00:24.1]} 50. Ka5 {[%clk 0:00:40.4]}
50... Ra8 {[%clk 0:00:15.6]} 51. Kb6 {[%clk 0:00:39.9]} 51... Rb8+ {[%clk
0:00:10.9]} 52. Ka7 {[%clk 0:00:34.5]} 52... Rb3 {[%clk 0:00:07.5]} 53. d5
{[%clk 0:00:29.4]} 53... Kd8 {[%clk 0:00:05.6]} 54. Rc6 {[%clk 0:00:28.2]} 1-0

[Event "Live Chess"]
[Site "Chess.com"]
[Date "2024.06.01"]
[Round "-"]
[White "Pablo_dmp"]
[Black "KeithArkell"]
[Result "0-1"]
[WhiteElo "2012"]
[BlackElo "2452"]
[TimeControl "300"]
[EndTime "13:28:35 PDT"]
[Termination "KeithArkell won by checkmate"]

1. e4 {[%clk 0:04:59.5]} 1... c6 {[%clk 0:04:58.3]} 2. d4 {[%clk 0:04:58.3]}
2... d5 {[%clk 0:04:58.2]} 3. e5 {[%clk 0:04:57.8]} 3... c5 {[%clk 0:04:57.5]}
4. dxc5 {[%clk 0:04:57]} 4... Nc6 {[%clk 0:04:56.6]} 5. f4 {[%clk 0:04:55.6]}
5... e6 {[%clk 0:04:52.1]} 6. Be3 {[%clk 0:04:53.1]} 6... d4 {[%clk 0:04:51.6]}
7. Bf2 {[%clk 0:04:52.2]} 7... Bxc5 {[%clk 0:04:51]} 8. Nd2 {[%clk 0:04:49.1]}
8... Nge7 {[%clk 0:04:49.6]} 9. Ngf3 {[%clk 0:04:47.6]} 9... Nd5 {[%clk
0:04:48.7]} 10. Bd3 {[%clk 0:04:45]} 10... Nxf4 {[%clk 0:04:47.7]} 11. O-O
{[%clk 0:04:39.2]} 11... Nxd3 {[%clk 0:04:46.1]} 12. cxd3 {[%clk 0:04:39.1]}
12... O-O {[%clk 0:04:44.7]} 13. Rc1 {[%clk 0:04:36.1]} 13... Bb6 {[%clk
0:04:43.9]} 14. Ne4 {[%clk 0:04:33.7]} 14... Bd7 {[%clk 0:04:29.8]} 15. Nfg5
{[%clk 0:04:24.4]} 15... h6 {[%clk 0:04:20]} 16. Qh5 {[%clk 0:04:12.5]} 16...
Nxe5 {[%clk 0:04:12.8]} 17. Bg3 {[%clk 0:04:09]} 17... Ng6 {[%clk 0:04:11.1]}
18. Nxf7 {[%clk 0:04:03.6]} 18... Rxf7 {[%clk 0:04:08.1]} 19. Qxg6 {[%clk
0:04:00]} 19... Rf5 {[%clk 0:03:54.3]} 20. Nd6 {[%clk 0:03:49]} 20... Rf6 {[%clk
0:03:47.6]} 21. Rxf6 {[%clk 0:03:37.5]} 21... Qxf6 {[%clk 0:03:47.5]} 22. Qe4
{[%clk 0:03:26]} 22... Bc6 {[%clk 0:03:45.1]} 23. Qe2 {[%clk 0:03:05]} 23... Rf8
{[%clk 0:03:43.5]} 24. Ne4 {[%clk 0:02:59.7]} 24... Qf5 {[%clk 0:03:37.6]} 25.
Nd6 {[%clk 0:02:45.2]} 25... Qd5 {[%clk 0:03:34.6]} 26. Ne4 {[%clk 0:02:38.8]}
26... e5 {[%clk 0:03:31.5]} 27. Qh5 {[%clk 0:02:31.1]} 27... Qf7 {[%clk
0:03:01.1]} 28. Qxe5 {[%clk 0:02:22.4]} 28... Re8 {[%clk 0:03:00.6]} 29. Qf4
{[%clk 0:02:15.7]} 29... Bxe4 {[%clk 0:02:56.1]} 30. dxe4 {[%clk 0:01:45.9]}
30... d3+ {[%clk 0:02:50.5]} 31. Kh1 {[%clk 0:01:41.3]} 31... Qxf4 {[%clk
0:02:49.1]} 32. Bxf4 {[%clk 0:01:41.2]} 32... Rxe4 {[%clk 0:02:48.3]} 33. Bd2
{[%clk 0:01:38.5]} 33... Re2 {[%clk 0:02:47]} 34. Rd1 {[%clk 0:01:37.7]} 34...
Kf7 {[%clk 0:02:39]} 35. Bc3 {[%clk 0:01:31.3]} 35... Re3 {[%clk 0:02:33.5]} 36.
Kg1 {[%clk 0:01:26.1]} 36... Re1# {[%clk 0:02:31.7]} 0-1

[Event "Live Chess"]
[Site "Chess.com"]
[Date "2024.06.01"]
[Round "-"]
[White "Silverback7829"]
[Black "WelshTiger"]
[Result "0-1"]
[WhiteElo "980"]
[BlackElo "2536"]
[TimeControl "300"]
[EndTime "13:28:56 PDT"]
[Termination "WelshTiger won by checkmate"]

1. d4 {[%clk 0:04:57.9]} 1... Nf6 {[%clk 0:04:56.8]} 2. Nf3 {[%clk 0:04:55.3]}
2... b6 {[%clk 0:04:55.9]} 3. e3 {[%clk 0:04:53.8]} 3... Bb7 {[%clk 0:04:55.3]}
4. Nc3 {[%clk 0:04:51.3]} 4... c5 {[%clk 0:04:54.6]} 5. Bc4 {[%clk 0:04:49.2]}
5... e6 {[%clk 0:04:53.9]} 6. Ng5 {[%clk 0:04:44.8]} 6... Be7 {[%clk 0:04:51.5]}
7. f3 {[%clk 0:04:38.4]} 7... a6 {[%clk 0:04:34.6]} 8. Ne2 {[%clk 0:04:31.3]}
8... b5 {[%clk 0:04:32]} 9. Bd3 {[%clk 0:04:27.4]} 9... c4 {[%clk 0:04:30.7]}
10. Be4 {[%clk 0:04:22.3]} 10... d5 {[%clk 0:04:30]} 11. Bxd5 {[%clk 0:04:01.6]}
11... exd5 {[%clk 0:04:25]} 12. O-O {[%clk 0:03:52.8]} 12... O-O {[%clk
0:04:23.6]} 13. Bd2 {[%clk 0:03:49.2]} 13... Nbd7 {[%clk 0:04:21.5]} 14. b3
{[%clk 0:03:45.6]} 14... Re8 {[%clk 0:04:20.3]} 15. bxc4 {[%clk 0:03:42.5]}
15... bxc4 {[%clk 0:04:20.2]} 16. a3 {[%clk 0:03:38]} 16... Bc6 {[%clk
0:04:18.8]} 17. Bb4 {[%clk 0:03:34.1]} 17... Nf8 {[%clk 0:04:16.6]} 18. Bxe7
{[%clk 0:03:30.9]} 18... Qxe7 {[%clk 0:04:15.9]} 19. Rb1 {[%clk 0:03:22.2]}
19... Qxe3+ {[%clk 0:04:14.8]} 20. Kh1 {[%clk 0:03:17.3]} 20... Qxg5 {[%clk
0:04:13.7]} 21. Nc3 {[%clk 0:03:05.6]} 21... Rab8 {[%clk 0:04:10.5]} 22. Rxb8
{[%clk 0:03:02.1]} 22... Rxb8 {[%clk 0:04:09]} 23. Qe2 {[%clk 0:02:53.6]} 23...
Ne6 {[%clk 0:04:06.7]} 24. g3 {[%clk 0:02:46.3]} 24... Nxd4 {[%clk 0:04:03.7]}
25. Qe7 {[%clk 0:02:34.9]} 25... Ne6 {[%clk 0:03:56.5]} 26. Rb1 {[%clk
0:02:25.5]} 26... Rxb1+ {[%clk 0:03:53.2]} 27. Nxb1 {[%clk 0:02:23.5]} 27...
Qc1+ {[%clk 0:03:51.4]} 28. Kg2 {[%clk 0:02:14.6]} 28... Qxc2+ {[%clk
0:03:50.6]} 29. Kh1 {[%clk 0:02:07.5]} 29... Qxb1+ {[%clk 0:03:48.2]} 30. Kg2
{[%clk 0:02:05.7]} 30... Qc2+ {[%clk 0:03:45.1]} 31. Kh1 {[%clk 0:02:04.2]}
31... Qd1+ {[%clk 0:03:42]} 32. Kg2 {[%clk 0:02:02]} 32... Qe2+ {[%clk
0:03:41.1]} 33. Kh3 {[%clk 0:01:59]} 33... Ng5+ {[%clk 0:03:38.3]} 34. Kh4
{[%clk 0:01:52.7]} 34... Nxf3+ {[%clk 0:03:26.7]} 35. Kh3 {[%clk 0:01:48.3]}
35... Qxh2# {[%clk 0:03:25]} 0-1

[Event "Live Chess"]
[Site "Chess.com"]
[Date "2024.06.01"]
[Round "-"]
[White "GerardATHart"]
[Black "Dhaydon19"]
[Result "0-1"]
[WhiteElo "1403"]
[BlackElo "2668"]
[TimeControl "300"]
[EndTime "13:29:00 PDT"]
[Termination "Dhaydon19 won by checkmate"]

1. e4 {[%clk 0:04:56.7]} 1... c6 {[%clk 0:04:59.7]} 2. d4 {[%clk 0:04:55.3]}
2... d5 {[%clk 0:04:59.4]} 3. exd5 {[%clk 0:04:54.2]} 3... cxd5 {[%clk
0:04:58.6]} 4. Bd3 {[%clk 0:04:53]} 4... Nf6 {[%clk 0:04:58]} 5. h3 {[%clk
0:04:51.7]} 5... Nc6 {[%clk 0:04:57.7]} 6. Nf3 {[%clk 0:04:50.3]} 6... g6 {[%clk
0:04:57.4]} 7. c3 {[%clk 0:04:48.9]} 7... Bf5 {[%clk 0:04:57]} 8. O-O {[%clk
0:04:46.2]} 8... Bxd3 {[%clk 0:04:55]} 9. Qxd3 {[%clk 0:04:44.8]} 9... Qc7
{[%clk 0:04:54.1]} 10. g3 {[%clk 0:04:36.6]} 10... Bg7 {[%clk 0:04:53.1]} 11.
Bf4 {[%clk 0:04:34.4]} 11... Qd7 {[%clk 0:04:52]} 12. Ne5 {[%clk 0:04:32.2]}
12... Qxh3 {[%clk 0:04:49.6]} 13. Nxc6 {[%clk 0:04:21.4]} 13... Ng4 {[%clk
0:04:45.3]} 14. Qf3 {[%clk 0:04:13.6]} 14... Qh2# {[%clk 0:04:43.8]} 0-1

[Event "Live Chess"]
[Site "Chess.com"]
[Date "2024.06.01"]
[Round "-"]
[White "Sweet-O"]
[Black "defenderalist"]
[Result "0-1"]
[WhiteElo "1546"]
[BlackElo "1538"]
[TimeControl "300"]
[EndTime "13:29:03 PDT"]
[Termination "defenderalist won by resignation"]

1. d4 {[%clk 0:04:58.6]} 1... Nf6 {[%clk 0:04:58]} 2. Nc3 {[%clk 0:04:58.5]}
2... e6 {[%clk 0:04:57]} 3. Bf4 {[%clk 0:04:58]} 3... d5 {[%clk 0:04:56.4]} 4.
e3 {[%clk 0:04:57]} 4... c5 {[%clk 0:04:54.9]} 5. f3 {[%clk 0:04:56.1]} 5... Nc6
{[%clk 0:04:53]} 6. Nb5 {[%clk 0:04:53.8]} 6... Qa5+ {[%clk 0:04:42.2]} 7. c3
{[%clk 0:04:51.9]} 7... e5 {[%clk 0:04:34.6]} 8. dxe5 {[%clk 0:04:51.3]} 8...
Nh5 {[%clk 0:04:23.6]} 9. Qxd5 {[%clk 0:04:44.5]} 9... Nxf4 {[%clk 0:04:19.8]}
10. exf4 {[%clk 0:04:44.4]} 10... Be6 {[%clk 0:04:12.4]} 11. Qe4 {[%clk
0:04:37.9]} 11... a6 {[%clk 0:04:08]} 12. b4 {[%clk 0:04:07.7]} 12... cxb4
{[%clk 0:03:53.2]} 13. cxb4 {[%clk 0:03:43.9]} 13... Bxb4+ {[%clk 0:03:45.7]}
14. Kf2 {[%clk 0:03:35.1]} 14... axb5 {[%clk 0:03:40.2]} 15. Ne2 {[%clk
0:03:29.3]} 15... Bc5+ {[%clk 0:03:36.7]} 16. Kg3 {[%clk 0:03:26.4]} 16... O-O
{[%clk 0:03:27.3]} 17. Nc1 {[%clk 0:03:11.1]} 17... Qb6 {[%clk 0:03:22.4]} 18.
Nd3 {[%clk 0:02:52.9]} 18... Be7 {[%clk 0:03:07.9]} 19. f5 {[%clk 0:02:46.4]}
19... Bc4 {[%clk 0:03:03.8]} 20. h4 {[%clk 0:02:32.3]} 20... Bxd3 {[%clk
0:03:02.5]} 21. Bxd3 {[%clk 0:02:30.8]} 21... Bc5 {[%clk 0:02:44]} 22. f6 {[%clk
0:02:26.4]} 22... g6 {[%clk 0:02:40.9]} 23. h5 {[%clk 0:02:24.2]} 23... Bf2+
{[%clk 0:02:34.6]} 24. Kg4 {[%clk 0:02:11.5]} 24... Qd4 {[%clk 0:02:32.9]} 25.
Qxd4 {[%clk 0:02:02.9]} 25... Bxd4 {[%clk 0:02:29.7]} 26. Rae1 {[%clk
0:01:44.2]} 26... Nxe5+ {[%clk 0:02:27.4]} 27. Kg5 {[%clk 0:01:35.7]} 27... Nxd3
{[%clk 0:02:26.3]} 28. Re7 {[%clk 0:01:19.9]} 28... Be3+ {[%clk 0:02:10.5]} 29.
Kg4 {[%clk 0:01:16.1]} 29... Nf2+ {[%clk 0:02:05.9]} 30. Kg3 {[%clk 0:01:12.9]}
30... Nxh1+ {[%clk 0:02:05.8]} 31. Kh2 {[%clk 0:01:11]} 31... Bg5 {[%clk
0:02:01.1]} 32. hxg6 {[%clk 0:01:06.4]} 32... hxg6 {[%clk 0:01:56.9]} 33. Rxb7
{[%clk 0:01:02.7]} 33... Bxf6 {[%clk 0:01:51.9]} 34. Kxh1 {[%clk 0:01:01.9]}
34... Rxa2 {[%clk 0:01:49.8]} 35. Rxb5 {[%clk 0:01:00.9]} 35... Kg7 {[%clk
0:01:45.5]} 0-1

[Event "Live Chess"]
[Site "Chess.com"]
[Date "2024.06.01"]
[Round "-"]
[White "upoe610"]
[Black "cymbalshift"]
[Result "1-0"]
[WhiteElo "2236"]
[BlackElo "1649"]
[TimeControl "300"]
[EndTime "13:29:33 PDT"]
[Termination "upoe610 won by resignation"]

1. c4 {[%clk 0:04:57.3]} 1... b6 {[%clk 0:04:57.3]} 2. d4 {[%clk 0:04:55.9]}
2... e6 {[%clk 0:04:55.7]} 3. a3 {[%clk 0:04:53.9]} 3... Bb7 {[%clk 0:04:54.1]}
4. Nc3 {[%clk 0:04:53.1]} 4... f5 {[%clk 0:04:51.4]} 5. d5 {[%clk 0:04:43.3]}
5... e5 {[%clk 0:04:46.2]} 6. g3 {[%clk 0:04:40.8]} 6... c5 {[%clk 0:04:42.3]}
7. Bg2 {[%clk 0:04:39.9]} 7... d6 {[%clk 0:04:41.3]} 8. e4 {[%clk 0:04:39.3]}
8... Bc8 {[%clk 0:04:22.9]} 9. Nge2 {[%clk 0:04:36.9]} 9... Nf6 {[%clk
0:04:21.1]} 10. O-O {[%clk 0:04:35.9]} 10... Be7 {[%clk 0:04:20.3]} 11. Bg5
{[%clk 0:04:34]} 11... O-O {[%clk 0:04:18.5]} 12. b4 {[%clk 0:04:30.4]} 12...
Nbd7 {[%clk 0:04:16.1]} 13. bxc5 {[%clk 0:04:28.6]} 13... fxe4 {[%clk
0:04:12.9]} 14. c6 {[%clk 0:04:26.5]} 14... Nc5 {[%clk 0:04:10.6]} 15. Bxf6
{[%clk 0:04:23.2]} 15... Rxf6 {[%clk 0:03:59.6]} 16. Nxe4 {[%clk 0:04:22.5]}
16... Nxe4 {[%clk 0:03:57.8]} 17. Bxe4 {[%clk 0:04:22.4]} 17... Bg4 {[%clk
0:03:54]} 18. Qd3 {[%clk 0:04:19.1]} 18... Qd7 {[%clk 0:03:47.7]} 19. Bxh7+
{[%clk 0:04:10.5]} 19... Kh8 {[%clk 0:03:46.7]} 20. Be4 {[%clk 0:04:10.4]} 20...
Raf8 {[%clk 0:03:31.8]} 21. cxd7 {[%clk 0:04:06]} 1-0

[Event "Live Chess"]
[Site "Chess.com"]
[Date "2024.06.01"]
[Round "-"]
[White "StoreySniper"]
[Black "Eva3337"]
[Result "1-0"]
[WhiteElo "2531"]
[BlackElo "1169"]
[TimeControl "300"]
[EndTime "13:29:34 PDT"]
[Termination "StoreySniper won by resignation"]

1. e4 {[%clk 0:04:56.9]} 1... Nc6 {[%clk 0:04:57.5]} 2. d4 {[%clk 0:04:55.3]}
2... d5 {[%clk 0:04:53.9]} 3. exd5 {[%clk 0:04:50.9]} 3... Qxd5 {[%clk
0:04:51.3]} 4. Nf3 {[%clk 0:04:50.5]} 4... Bg4 {[%clk 0:04:42.3]} 5. Be2 {[%clk
0:04:49.7]} 5... Bxf3 {[%clk 0:04:37]} 6. Bxf3 {[%clk 0:04:47.2]} 6... Qd7
{[%clk 0:04:01.7]} 7. Be3 {[%clk 0:04:40.2]} 7... Rd8 {[%clk 0:03:58.3]} 8. c3
{[%clk 0:04:32]} 8... Nf6 {[%clk 0:03:56.8]} 9. O-O {[%clk 0:04:29.9]} 9... e6
{[%clk 0:03:55.6]} 10. Nd2 {[%clk 0:04:24.1]} 10... Bd6 {[%clk 0:03:48.7]} 11.
Nc4 {[%clk 0:04:21.1]} 11... Be7 {[%clk 0:03:43.9]} 12. Qb3 {[%clk 0:04:16.8]}
12... Rb8 {[%clk 0:03:23.6]} 13. Rad1 {[%clk 0:04:11.9]} 13... O-O {[%clk
0:03:20.8]} 14. Ne5 {[%clk 0:04:08.7]} 14... Nd5 {[%clk 0:02:49.4]} 15. Nxd7
{[%clk 0:04:05.9]} 1-0

[Event "Live Chess"]
[Site "Chess.com"]
[Date "2024.06.01"]
[Round "-"]
[White "Tyslcab"]
[Black "ShanthamGrarks"]
[Result "0-1"]
[WhiteElo "1410"]
[BlackElo "1818"]
[TimeControl "300"]
[EndTime "13:29:37 PDT"]
[Termination "ShanthamGrarks won on time"]

1. e4 {[%clk 0:04:57.1]} 1... e5 {[%clk 0:04:54.4]} 2. Nf3 {[%clk 0:04:55.1]}
2... d5 {[%clk 0:04:54]} 3. exd5 {[%clk 0:04:51.3]} 3... Bd6 {[%clk 0:04:53.3]}
4. Nc3 {[%clk 0:04:26.3]} 4... Nf6 {[%clk 0:04:52.7]} 5. d3 {[%clk 0:04:23.3]}
5... Bg4 {[%clk 0:04:51.4]} 6. Be2 {[%clk 0:04:21.7]} 6... Nbd7 {[%clk
0:04:49.9]} 7. h3 {[%clk 0:04:19.8]} 7... Bh5 {[%clk 0:04:45.9]} 8. g4 {[%clk
0:04:14.2]} 8... Bg6 {[%clk 0:04:44]} 9. Nh4 {[%clk 0:04:09.6]} 9... Qe7 {[%clk
0:04:34.7]} 10. Nxg6 {[%clk 0:04:06.9]} 10... hxg6 {[%clk 0:04:32.9]} 11. Bg5
{[%clk 0:04:04.5]} 11... O-O-O {[%clk 0:04:30.8]} 12. Qd2 {[%clk 0:04:01.4]}
12... Bb4 {[%clk 0:04:24.9]} 13. O-O-O {[%clk 0:03:57.7]} 13... Qd6 {[%clk
0:04:21.7]} 14. a3 {[%clk 0:03:49.9]} 14... Bxc3 {[%clk 0:04:16.1]} 15. Qxc3
{[%clk 0:03:47.8]} 15... Nxd5 {[%clk 0:04:14.9]} 16. Qa5 {[%clk 0:03:33.8]}
16... f6 {[%clk 0:04:09.8]} 17. Qxa7 {[%clk 0:03:16.2]} 17... fxg5 {[%clk
0:03:49]} 18. Qa8+ {[%clk 0:03:10.6]} 18... Nb8 {[%clk 0:03:48]} 19. Bf3 {[%clk
0:02:58.1]} 19... Qa6 {[%clk 0:03:40.3]} 20. Qxa6 {[%clk 0:02:53.3]} 20... Nxa6
{[%clk 0:03:39.3]} 21. Bg2 {[%clk 0:02:44.9]} 21... Nf4 {[%clk 0:03:37.7]} 22.
Be4 {[%clk 0:02:42.3]} 22... Nxh3 {[%clk 0:03:33]} 23. Bxg6 {[%clk 0:02:39.9]}
23... Nxf2 {[%clk 0:03:31.5]} 24. Rxh8 {[%clk 0:02:38.4]} 24... Rxh8 {[%clk
0:03:30.4]} 25. Rf1 {[%clk 0:02:36.5]} 25... Rh2 {[%clk 0:03:24.9]} 26. Bf5+
{[%clk 0:02:30.5]} 26... Kd8 {[%clk 0:03:23.6]} 27. b4 {[%clk 0:02:25.9]} 27...
c6 {[%clk 0:03:21.1]} 28. Re1 {[%clk 0:02:14.7]} 28... Rh1 {[%clk 0:03:08.9]}
29. Rxh1 {[%clk 0:02:08.3]} 29... Nxh1 {[%clk 0:03:06.9]} 30. Kd2 {[%clk
0:02:06.8]} 30... Ng3 {[%clk 0:03:05.1]} 31. Bg6 {[%clk 0:02:00.8]} 31... Nc7
{[%clk 0:03:01.8]} 32. Ke3 {[%clk 0:01:57.2]} 32... Nd5+ {[%clk 0:02:57.6]} 33.
Kf2 {[%clk 0:01:54.6]} 33... Ne7 {[%clk 0:02:52.3]} 34. Bh7 {[%clk 0:01:49.1]}
34... Nh1+ {[%clk 0:02:39]} 35. Kg2 {[%clk 0:01:47]} 35... g6 {[%clk 0:02:38.4]}
36. Kxh1 {[%clk 0:01:43.3]} 36... Ke8 {[%clk 0:02:37.9]} 37. Kg2 {[%clk
0:01:37.4]} 37... Kf8 {[%clk 0:02:37.2]} 38. Kf3 {[%clk 0:01:34.7]} 38... Kg7
{[%clk 0:02:36.7]} 39. Ke4 {[%clk 0:01:28.8]} 39... Kf6 {[%clk 0:02:34]} 40. c4
{[%clk 0:01:22.9]} 40... b6 {[%clk 0:02:30.5]} 41. a4 {[%clk 0:01:15.8]} 41...
Kg7 {[%clk 0:02:27]} 42. Kxe5 {[%clk 0:01:11.1]} 42... Kxh7 {[%clk 0:02:26.2]}
43. a5 {[%clk 0:01:05.5]} 43... bxa5 {[%clk 0:02:23.7]} 44. bxa5 {[%clk
0:01:04.6]} 44... Nc8 {[%clk 0:02:23.3]} 45. d4 {[%clk 0:00:57]} 45... Kg7
{[%clk 0:02:21.6]} 46. d5 {[%clk 0:00:53.5]} 46... cxd5 {[%clk 0:02:21]} 47.
Kxd5 {[%clk 0:00:50.5]} 47... Kf7 {[%clk 0:02:20.6]} 48. a6 {[%clk 0:00:47.8]}
48... Ke7 {[%clk 0:02:19.8]} 49. Kc6 {[%clk 0:00:44.3]} 49... Kd8 {[%clk
0:02:10.2]} 50. Kb7 {[%clk 0:00:41.8]} 50... Nd6+ {[%clk 0:02:09.2]} 51. Kb8
{[%clk 0:00:37.2]} 51... Nxc4 {[%clk 0:02:07]} 52. a7 {[%clk 0:00:36]} 52... Nb6
{[%clk 0:02:04.5]} 53. Kb7 {[%clk 0:00:34.5]} 53... Nd7 {[%clk 0:01:59]} 54.
a8=Q+ {[%clk 0:00:30.1]} 54... Ke7 {[%clk 0:01:58.7]} 55. Qa3+ {[%clk
0:00:25.4]} 55... Kf6 {[%clk 0:01:53.2]} 56. Qd6+ {[%clk 0:00:21.3]} 56... Kg7
{[%clk 0:01:50.7]} 57. Qxd7+ {[%clk 0:00:20.2]} 57... Kh6 {[%clk 0:01:50.6]} 58.
Qd1 {[%clk 0:00:13.3]} 58... Kg7 {[%clk 0:01:49]} 59. Qd5 {[%clk 0:00:10]} 59...
Kf6 {[%clk 0:01:48]} 60. Kc7 {[%clk 0:00:07.8]} 60... Ke7 {[%clk 0:01:46.5]} 61.
Qd6+ {[%clk 0:00:05.9]} 61... Kf7 {[%clk 0:01:45.1]} 62. Kd8 {[%clk 0:00:04.4]}
62... Kg7 {[%clk 0:01:44.6]} 63. Qe6 {[%clk 0:00:02.7]} 63... Kh6 {[%clk
0:01:44.2]} 64. Ke8 {[%clk 0:00:01.6]} 64... Kg7 {[%clk 0:01:42.3]} 65. Qf7+
{[%clk 0:00:00.5]} 65... Kh6 {[%clk 0:01:41.4]} 0-1

[Event "Live Chess"]
[Site "Chess.com"]
[Date "2024.06.01"]
[Round "-"]
[White "MagnersCarlsberg2870"]
[Black "Frankie_Badacsonyi"]
[Result "0-1"]
[WhiteElo "1799"]
[BlackElo "2440"]
[TimeControl "300"]
[EndTime "13:29:37 PDT"]
[Termination "Frankie_Badacsonyi won by resignation"]

1. e4 {[%clk 0:04:54]} 1... e6 {[%clk 0:04:59]} 2. d3 {[%clk 0:04:52.8]} 2... d5
{[%clk 0:04:58.8]} 3. Nd2 {[%clk 0:04:51.8]} 3... Nf6 {[%clk 0:04:58.3]} 4. Ngf3
{[%clk 0:04:51]} 4... b6 {[%clk 0:04:57.8]} 5. g3 {[%clk 0:04:50.2]} 5... Bb7
{[%clk 0:04:56.7]} 6. Bg2 {[%clk 0:04:49.6]} 6... Nc6 {[%clk 0:04:50.4]} 7. O-O
{[%clk 0:04:47.7]} 7... Qe7 {[%clk 0:04:47.9]} 8. Re1 {[%clk 0:04:43.4]} 8...
O-O-O {[%clk 0:04:46.8]} 9. a4 {[%clk 0:04:41.3]} 9... dxe4 {[%clk 0:04:39.1]}
10. dxe4 {[%clk 0:04:35.1]} 10... Kb8 {[%clk 0:04:37.4]} 11. e5 {[%clk
0:04:33.1]} 11... Nd7 {[%clk 0:04:33.3]} 12. a5 {[%clk 0:04:30.9]} 12... Nxa5
{[%clk 0:04:28.4]} 13. Rxa5 {[%clk 0:04:29.6]} 13... bxa5 {[%clk 0:04:28.3]} 14.
Qe2 {[%clk 0:04:18.5]} 14... Nc5 {[%clk 0:04:14.6]} 15. Nb3 {[%clk 0:04:09.8]}
15... Nxb3 {[%clk 0:04:11.9]} 16. cxb3 {[%clk 0:04:08.7]} 16... h6 {[%clk
0:04:03.2]} 17. Qb5 {[%clk 0:04:06.4]} 17... Qb4 {[%clk 0:03:59.3]} 18. Qe2
{[%clk 0:03:54.7]} 18... Bc5 {[%clk 0:03:58]} 19. Bd2 {[%clk 0:03:47.2]} 19...
Qb6 {[%clk 0:03:52.3]} 20. Ra1 {[%clk 0:03:40]} 20... Bb4 {[%clk 0:03:50.4]} 21.
Be3 {[%clk 0:03:33.9]} 21... c5 {[%clk 0:03:49.2]} 22. Ne1 {[%clk 0:03:22.9]}
22... Bxg2 {[%clk 0:03:47.4]} 23. Kxg2 {[%clk 0:03:20.5]} 23... Rd7 {[%clk
0:03:32.6]} 24. Nc2 {[%clk 0:03:15.5]} 24... Rhd8 {[%clk 0:03:30]} 25. Nxb4
{[%clk 0:03:14.1]} 25... axb4 {[%clk 0:03:29.4]} 26. Ra6 {[%clk 0:03:13.2]}
26... Qb7+ {[%clk 0:03:25]} 27. Kh3 {[%clk 0:03:10.9]} 27... Rc8 {[%clk
0:03:16.9]} 28. Ra5 {[%clk 0:03:01.1]} 28... Qd5 {[%clk 0:03:01.3]} 29. Qb5+
{[%clk 0:02:36.8]} 29... Rb7 {[%clk 0:03:00.1]} 30. Qa6 {[%clk 0:02:29.4]} 30...
Rc6 {[%clk 0:02:40.2]} 31. Qe2 {[%clk 0:02:21.9]} 31... g5 {[%clk 0:02:38.2]}
32. Qh5 {[%clk 0:02:18.2]} 32... Rc8 {[%clk 0:02:10.2]} 33. Qxh6 {[%clk
0:02:10.2]} 33... Qxe5 {[%clk 0:02:09]} 34. Kg2 {[%clk 0:01:51.5]} 34... Qd5+
{[%clk 0:02:05.1]} 35. Kh3 {[%clk 0:01:38.4]} 35... Qf5+ {[%clk 0:01:54.2]} 36.
Kg2 {[%clk 0:01:37]} 36... g4 {[%clk 0:01:30.7]} 37. Bf4+ {[%clk 0:01:33.2]}
37... Ka8 {[%clk 0:01:30]} 38. Bd6 {[%clk 0:00:56.6]} 38... Qd5+ {[%clk
0:01:27.9]} 0-1